bitfinex/quotes_ETHUSD_20240922
["timestamp","ask_amount","ask_price","bid_price","bid_amount"]
[1727026148131,2.5341201,2585.8,2585.7,5.20125741]
[1727026148492,2.5341201,2585.8,2585.7,3.86742]
[1727026148682,2.56886697,2585.8,2585.7,3.86742]
[1727026149092,2.56886697,2585.8,2585.7,5.20299872]
[1727026149313,2.56886697,2585.8,2585.7,5.5869024]
[1727026149490,2.56886697,2585.8,2585.7,4.25132368]
[1727026151058,2.56886697,2585.8,2585.7,5.58720258]
[1727026151265,2.56886697,2585.8,2585.7,6.3936366]
[1727026151483,2.56886697,2585.8,2585.7,5.58720258]
[1727026151988,2.56886697,2585.8,2585.7,5.2032989]
[1727026152421,2.56886697,2585.8,2585.7,5.58721857]
[1727026153020,2.5341201,2585.8,2585.7,5.58721857]
[1727026153263,0.0375201,2585.8,2585.7,6.27876022]
[1727026153462,0.0375201,2585.8,2585.7,9.26933943]
[1727026153626,0.0375201,2585.8,2585.7,9.19199115]
[1727026155262,0.0375201,2585.8,2585.7,10.36259465]
[1727026155564,0.0375201,2585.8,2585.7,9.97836052]
[1727026155725,0.0375201,2585.8,2585.7,10.36217114]
[1727026158630,0.0375201,2585.8,2585.7,8.74930309]
[1727026158958,0.0375201,2585.8,2585.7,10.36217114]
[1727026160077,0.0375201,2585.8,2585.7,9.02674509]
[1727026160284,0.0375201,2585.8,2585.7,10.36111927]
[1727026162237,0.0375201,2585.8,2585.7,8.5955904]
[1727026162686,0.0375201,2585.8,2585.7,6.98272235]
[1727026162896,0.0375201,2585.8,2585.7,10.43700954]
[1727026163060,0.0375201,2585.8,2585.7,9.59268036]
[1727026163398,0.0375201,2585.8,2585.7,10.35967264]
[1727026164089,0.0375201,2585.8,2585.7,9.59268036]
[1727026164598,0.0375201,2585.8,2585.7,10.35967264]
[1727026165096,0.0375201,2585.8,2585.7,10.35928702]
[1727026165600,0.0375201,2585.8,2585.7,7.97942669]
[1727026165890,0.0375201,2585.8,2585.7,11.88049474]
[1727026166066,0.0375201,2585.8,2585.7,12.64748702]
[1727026167897,0.0375201,2585.8,2585.7,15.64748702]
[1727026168204,0.0375201,2585.8,2585.7,14.03461897]
[1727026168566,0.0375201,2585.8,2585.7,15.64419016]
[1727026168767,0.0375201,2585.8,2585.7,14.03461897]
[1727026169004,0.0375201,2585.8,2585.7,16.04776014]
[1727026169377,0.0375201,2585.8,2585.7,15.64412939]
[1727026169581,0.0375201,2585.8,2585.7,12.27053673]
[1727026169964,0.0375201,2585.8,2585.7,13.87982289]
[1727026170190,0.0375201,2585.8,2585.7,15.64224481]
[1727026170699,0.0375201,2585.8,2585.7,14.87597441]
[1727026170900,0.0375201,2585.8,2585.7,15.64224481]
[1727026171485,0.0375201,2585.8,2585.7,14.87597441]
[1727026171996,0.0375201,2585.8,2585.7,13.87982289]
[1727026172174,0.0375201,2585.8,2585.7,15.64200494]
[1727026172379,0.0375201,2585.8,2585.7,14.87583883]
[1727026173314,0.0375201,2585.8,2585.7,13.87982289]
[1727026173607,0.0375201,2585.8,2585.7,15.64191881]
[1727026173814,0.0375201,2585.8,2585.7,14.87579015]
[1727026173991,0.0375201,2585.8,2585.7,16.05304148]
[1727026174386,0.0375201,2585.8,2585.7,14.71905292]
[1727026174590,0.0375201,2585.8,2585.7,16.05186439]
[1727026176615,0.0375201,2585.8,2585.7,15.05589713]
[1727026176828,0.0375201,2585.8,2585.7,16.0517744]
[1727026180286,0.0375201,2585.8,2585.7,15.05589713]
[1727026181097,0.0375201,2585.8,2585.7,16.81790528]
[1727026181304,0.0375201,2585.8,2585.7,16.05181478]
[1727026181904,0.0375201,2585.8,2585.7,16.05177358]
[1727026183815,0.0375201,2585.8,2585.7,15.05589713]
[1727026184115,0.0375201,2585.8,2585.7,16.81776024]
[1727026185158,0.0375201,2585.8,2585.7,15.66873575]
[1727026186160,0.0375201,2585.8,2585.7,15.66869717]
[1727026186707,0.0375201,2585.8,2585.7,15.05589713]
[1727026186900,0.0375201,2585.8,2585.7,15.66867283]
[1727026187100,0.0375201,2585.8,2585.7,15.66831846]
[1727026187508,0.0375201,2585.8,2585.7,14.05938667]
[1727026187723,0.0375201,2585.8,2585.7,14.67219774]
[1727026188000,0.0375201,2585.8,2585.7,14.05942204]
[1727026188934,0.0375201,2585.8,2585.7,14.0589696]
[1727026189136,0.0375201,2585.8,2585.7,15.6679232]
[1727026189334,0.0375201,2585.8,2585.7,14.0589696]
[1727026189635,0.0375201,2585.8,2585.7,15.66787548]
[1727026189847,0.0375201,2585.8,2585.7,14.0589696]
[1727026190397,0.0375201,2585.8,2585.7,15.66793752]
[1727026190897,0.0375201,2585.8,2585.7,15.66793252]
[1727026191099,0.0375201,2585.8,2585.7,14.0589696]
[1727026191502,0.0375201,2585.8,2585.7,15.66793265]
[1727026191723,0.0375201,2585.8,2585.7,14.0589696]
[1727026192646,0.0375201,2585.8,2585.7,15.6680655]
[1727026192799,0.0375201,2585.8,2585.7,14.0589696]
[1727026193603,0.0375201,2585.8,2585.7,14.05912686]
[1727026193842,0.0375201,2585.8,2585.7,15.66833754]
[1727026194141,0.0375201,2585.8,2585.7,14.05912686]
[1727026194313,0.0375201,2585.8,2585.7,15.66827841]
[1727026194519,0.0375201,2585.8,2585.7,16.07053654]
[1727026197176,0.0375201,2585.8,2585.7,14.05912686]
[1727026197377,0.0375201,2585.8,2585.7,16.07053654]
[1727026197526,0.0375201,2585.8,2585.7,12.20339577]
[1727026198274,0.0375201,2585.8,2585.7,10.59367553]
[1727026198422,0.0375201,2585.8,2585.7,9.98148779]
[1727026198621,0.0375201,2585.8,2585.7,11.59120803]
[1727026199022,0.0375201,2585.8,2585.7,12.20459367]
[1727026200139,0.0375201,2585.8,2585.7,12.2046774]
[1727026200545,2.4241201,2585.8,2585.7,5.81402899]
[1727026200738,2.4241201,2585.8,2585.7,5.20055962]
[1727026200949,2.66653211,2585.8,2585.7,5.20055962]
[1727026201162,2.4241201,2585.8,2585.7,5.20055962]
[1727026201471,2.4241201,2585.8,2585.7,5.81436395]
[1727026201637,2.4241201,2585.8,2585.7,5.28677895]
[1727026201833,2.4241201,2585.8,2585.7,6.62075337]
[1727026203759,2.4241201,2585.8,2585.7,6.62058545]
[1727026204173,2.4241201,2585.8,2585.7,6.00678112]
[1727026205140,2.4241201,2585.8,2585.7,6.620364]
[1727026206431,2.4241201,2585.8,2585.7,6.61988154]
[1727026207129,2.4241201,2585.8,2585.7,5.81449484]
[1727026208231,2.4241201,2585.8,2585.7,6.61969707]
[1727026209579,2.4241201,2585.8,2585.7,6.00611419]
[1727026209741,2.4241201,2585.8,2585.7,6.61966608]
[1727026209742,0.0375201,2585.8,2585.7,6.61966608]
[1727026209963,0.0375201,2585.8,2585.7,12.98626141]
[1727026210166,0.0375201,2585.8,2585.7,14.51864575]
[1727026211378,0.0375201,2585.8,2585.7,14.51860401]
[1727026213550,0.0375201,2585.8,2585.7,13.90505212]
[1727026214481,0.0375201,2585.8,2585.7,14.51852669]
[1727026215336,0.0375201,2585.8,2585.7,13.84222764]
[1727026215737,0.0375201,2585.8,2585.7,16.33735623]
[1727026215936,0.0375201,2585.8,2585.7,14.36545412]
[1727026216168,0.0375201,2586.6,2586.5,3.86622]
[1727026216353,0.0375201,2586.6,2586.5,15.29188106]
[1727026216562,0.0375201,2586.6,2586.5,13.5129194]
[1727026216888,0.0375201,2586.6,2586.5,11.69242155]
[1727026217537,0.0375201,2586.6,2586.5,13.10924312]
[1727026217981,0.0375201,2586.6,2586.5,10.79374312]
[1727026218137,0.0375201,2586.6,2586.5,10.18085519]
[1727026218581,0.0375201,2586.6,2586.5,10.79374312]
[1727026219170,0.0375201,2586.6,2586.5,10.18085519]
[1727026220241,0.0375201,2586.6,2586.5,13.25108593]
[1727026220446,0.0375201,2586.6,2586.5,13.24760805]
[1727026220687,0.0375201,2586.6,2586.5,12.2502684]
[1727026221447,0.0375201,2586.6,2586.5,11.87590711]
[1727026221651,0.0375201,2586.6,2586.5,5.80821707]
[1727026221879,0.0375201,2586.6,2586.5,3.86622]
[1727026225290,2.5079201,2586.6,2586.5,3.86622]
[1727026225450,2.75871211,2586.6,2586.5,3.86622]
[1727026226993,2.75871211,2586.6,2585.9,2.99553314]
[1727026226994,2.75871211,2586.6,2586.2,3.8666]
[1727026227284,2.75871211,2586.6,2585.9,0.61191427]
[1727026227285,1.17725133,2586.4,2585.9,0.61191427]
[1727026227608,2.4704,2586.3,2586.1,3.86679]
[1727026227904,5.33175344,2586.6,2586.1,3.86679]
[1727026227905,2.71744,2586.2,2586.1,3.86679]
[1727026228081,2.4704,2586.2,2586.1,3.86679]
[1727026238792,2.3349,2586.5,2586.4,3.86637]
[1727026239494,0.0375201,2586.6,2586.5,3.86622]
[1727026243023,0.0375201,2586.6,2586.5,5.12078934]
[1727026243224,0.0375201,2586.6,2586.5,10.38788667]
[1727026243547,0.0375201,2586.6,2586.5,11.63765716]
[1727026243751,0.0375201,2586.6,2586.5,10.31057133]
[1727026245015,0.0375201,2586.6,2586.5,10.69261473]
[1727026245667,0.0375201,2586.6,2586.5,12.01936752]
[1727026245979,0.0375201,2586.6,2586.5,10.69261473]
[1727026248136,0.0375201,2586.6,2586.5,10.31057133]
[1727026249090,0.0375201,2586.6,2586.5,10.69250218]
[1727026249250,0.0375201,2586.6,2586.5,10.31057133]
[1727026249448,0.0375201,2586.6,2586.5,8.04347133]
[1727026251049,0.0375201,2586.6,2586.5,10.31057133]
[1727026252449,0.0375201,2586.6,2586.5,10.69251395]
[1727026252649,0.0375201,2586.6,2586.5,10.31057133]
[1727026259202,0.0375201,2586.6,2586.5,11.6375872]
[1727026259376,0.0375201,2586.6,2586.5,10.31057133]
[1727026260678,0.0375201,2586.6,2586.5,3.86622]
[1727026261079,2.3060201,2586.6,2586.5,3.86622]
[1727026264310,0.0375201,2586.6,2586.5,3.86622]
[1727026264641,2.4676201,2586.6,2586.5,3.86622]
[1727026266846,2.4676201,2586.6,2586.4,7.73274]
[1727026267153,2.4676201,2586.6,2586.5,3.86622]
[1727026269057,0.0375201,2586.6,2586.5,3.86622]
[1727026273476,0.0375201,2586.6,2586.5,6.23123778]
[1727026273645,0.0375201,2586.6,2586.5,6.15392]
[1727026274125,0.0375201,2586.6,2586.5,6.23123093]
[1727026274331,0.0375201,2586.6,2586.5,9.23123093]
[1727026274554,0.0375201,2586.6,2586.5,10.4811709]
[1727026275140,0.0375201,2586.6,2586.5,13.03089845]
[1727026275366,0.0375201,2586.6,2586.5,12.50653759]
[1727026275561,0.0375201,2586.6,2586.5,13.03071579]
[1727026275768,0.0375201,2586.6,2586.5,13.8327601]
[1727026276482,0.0375201,2586.6,2586.5,13.03071579]
[1727026277379,0.0375201,2586.6,2586.5,13.8327601]
[1727026277549,0.0375201,2586.6,2586.5,13.8328511]
[1727026278675,0.0375201,2586.6,2586.5,13.83287737]
[1727026279037,0.0375201,2586.6,2586.5,13.83282187]
[1727026279271,0.0375201,2586.6,2586.5,13.83280114]
[1727026279572,0.0375201,2586.6,2586.5,13.03071579]
[1727026279772,0.0375201,2586.6,2586.5,13.83285459]
[1727026279952,0.0375201,2586.6,2586.5,13.03071579]
[1727026280163,0.0375201,2586.6,2586.5,14.23533699]
[1727026280476,0.0375201,2586.6,2586.5,13.03077183]
[1727026280681,0.0375201,2586.6,2586.5,14.23533699]
[1727026281172,0.0375201,2586.6,2586.5,13.03077183]
[1727026281409,0.0375201,2586.6,2586.5,14.23391871]
[1727026281543,0.0375201,2586.6,2586.5,13.03077183]
[1727026281742,0.0375201,2586.6,2586.5,14.23390988]
[1727026282547,0.0375201,2586.6,2586.5,14.64013621]
[1727026282748,0.0375201,2586.6,2586.5,14.23406812]
[1727026283375,0.0375201,2586.6,2586.5,13.03077183]
[1727026283762,0.0375201,2586.6,2586.5,14.23433372]
[1727026284484,0.0375201,2586.6,2586.5,13.03077183]
[1727026284782,0.0375201,2586.6,2586.5,14.80080873]
[1727026285279,0.0375201,2586.6,2586.5,14.64070864]
[1727026285483,0.0375201,2586.6,2586.5,17.87057704]
[1727026285695,0.0375201,2586.6,2586.5,16.33773992]
[1727026286482,0.0375201,2586.6,2586.5,15.86435266]
[1727026287203,0.0375201,2586.6,2586.5,16.33773992]
[1727026288757,0.0375201,2586.6,2586.5,15.03630549]
[1727026288959,0.0375201,2586.6,2586.5,17.01616203]
[1727026289286,0.0375201,2586.6,2586.5,15.24669756]
[1727026289589,0.0375201,2586.6,2586.5,15.24610478]
[1727026290102,0.0375201,2586.6,2586.5,17.01556925]
[1727026290445,0.0375201,2586.6,2586.5,14.84517477]
[1727026291275,0.0375201,2586.6,2586.5,8.80447919]
[1727026291499,0.0375201,2586.6,2586.5,6.60680071]
[1727026291676,2.3514201,2586.6,2586.5,3.86622]
[1727026293349,2.58656211,2586.6,2586.5,3.86622]
[1727026294152,2.58656211,2586.6,2586.4,3.86637]
[1727026294153,2.58656211,2586.6,2586.4,3.86629]
[1727026294903,2.58656211,2586.6,2586.5,3.86622]
[1727026296499,2.58656211,2586.6,2586.2,3.86653]
[1727026297498,2.58656211,2586.6,2586.1,3.86681]
[1727026297736,0.25865621,2586.5,2586.1,3.86681]
[1727026297901,2.3139,2586.4,2586.0,3.86696]
[1727026298070,2.3139,2586.4,2585.9,3.86703]
[1727026299167,2.3318,2586.3,2585.9,3.86703]
[1727026299473,2.3318,2586.1,2585.5,3.86762]
[1727026299680,2.3318,2586.0,2585.5,3.86762]
[1727026300001,2.3318,2585.8,2585.5,3.86762]
[1727026300290,2.3318,2585.8,2585.4,3.8678]
[1727026300869,3.86735,2585.8,2585.1,3.86829]
[1727026301080,3.86735,2585.8,2585.1,3.86823]
[1727026301081,2.3318,2585.6,2585.1,3.86823]
[1727026301809,2.3318,2585.5,2585.1,3.86823]
[1727026302089,2.3318,2585.3,2585.1,3.86823]
[1727026303180,2.3318,2585.3,2585.1,3.86822]
[1727026303497,2.3318,2585.3,2585.2,3.86817]
[1727026303695,2.3318,2585.3,2585.1,3.86822]
[1727026306315,2.3318,2585.3,2585.1,7.73644]
[1727026306525,1.006567,2585.9,2585.2,3.86817]
[1727026306723,2.3519,2585.8,2585.2,3.86815]
[1727026307244,2.3519,2585.8,2585.4,3.86785]
[1727026307739,2.3519,2585.8,2585.4,3.86778]
[1727026308519,2.3519,2585.8,2585.4,7.73555]
[1727026308738,2.97379,2585.8,2585.5,3.86772]
[1727026309403,2.97379,2585.8,2585.4,3.86777]
[1727026309404,2.3519,2585.7,2585.2,3.86805]
[1727026309743,2.3519,2585.7,2585.4,3.86782]
[1727026310234,2.3519,2585.7,2585.3,3.86799]
[1727026310868,3.86751,2585.7,2585.0,3.86837]
[1727026311143,2.3519,2585.5,2585.2,3.86814]
[1727026311451,2.3519,2585.5,2585.0,3.86835]
[1727026311750,2.3519,2585.5,2585.1,3.86831]
[1727026312118,2.3519,2585.5,2585.2,3.86815]
[1727026312326,0.280084,2585.4,2585.2,3.86815]
[1727026316629,0.280084,2585.4,2585.0,3.86833]
[1727026316837,2.3519,2585.3,2585.0,3.86833]
[1727026317230,2.3519,2585.3,2585.1,3.86831]
[1727026318567,2.3519,2585.3,2585.2,3.86817]
[1727026320625,2.3519,2585.3,2585.1,3.8683]
[1727026320826,2.3519,2585.3,2585.1,7.73652]
[1727026321818,2.3519,2585.3,2585.2,3.86817]
[1727026322004,0.44894,2585.6,2585.5,3.86772]
[1727026322005,2.2543,2585.6,2585.5,3.86772]
[1727026322524,2.2543,2585.6,2585.4,3.86779]
[1727026322725,2.2543,2585.6,2585.4,7.73558]
[1727026323030,3.86668,2586.2,2585.5,3.86772]
[1727026323194,3.0688,2585.9,2585.7,3.86739]
[1727026323593,3.0688,2585.9,2585.7,7.73478]
[1727026323819,2.3238,2585.9,2585.7,7.73478]
[1727026324017,2.3238,2585.9,2585.7,3.86739]
[1727026324938,2.3238,2585.9,2585.8,3.86727]
[1727026325145,2.3238,2586.4,2585.5,0.07734564]
[1727026325360,2.3238,2586.4,2586.0,3.86685]
[1727026325361,0.97738,2586.3,2586.0,3.86685]
[1727026326533,0.97738,2586.3,2586.0,7.728455]
[1727026326719,0.97738,2586.3,2586.0,3.861565]
[1727026327110,0.97738,2586.3,2586.0,7.728455]
[1727026327445,0.97738,2586.3,2586.0,3.861565]
[1727026327630,0.330118,2586.2,2586.0,3.861565]
[1727026330437,2.3903,2586.1,2585.8,3.86718]
[1727026330744,2.3903,2585.7,2585.2,11.21809]
[1727026330944,2.3903,2585.7,2585.2,3.86808]
[1727026331850,2.3903,2585.7,2585.2,7.73617]
[1727026332147,0.88073876,2585.6,2585.3,3.868]
[1727026332755,0.88073876,2585.6,2585.2,3.86808]
[1727026332906,2.3903,2585.5,2585.0,3.86843]
[1727026333111,0.71387388,2585.4,2585.0,7.7368]
[1727026333332,0.71387388,2585.4,2585.0,3.86837]
[1727026333612,0.71387388,2585.4,2585.0,7.73676]
[1727026334322,2.3903,2585.3,2585.0,3.86837]
[1727026334524,0.31041739,2585.2,2584.8,3.86862]
[1727026334724,0.31041739,2585.2,2584.5,6.29357]
[1727026335016,2.3903,2585.3,2585.0,3.86837]
[1727026335857,2.3903,2585.3,2585.0,7.73673]
[1727026336064,2.3903,2585.3,2585.0,3.86836]
[1727026336928,2.3903,2585.3,2585.1,3.86832]
[1727026337239,3.8675,2585.7,2585.1,3.86832]
[1727026337240,2.3903,2585.5,2585.2,3.86804]
[1727026337456,3.01608,2585.5,2585.1,3.86832]
[1727026337636,2.3903,2585.4,2584.9,3.86856]
[1727026339525,2.3903,2585.4,2585.1,3.86823]
[1727026339733,2.3903,2585.4,2585.2,7.7362]
[1727026339943,2.3903,2585.4,2585.2,3.86807]
[1727026340477,2.691908,2585.4,2585.2,3.86807]
[1727026341074,2.691908,2585.4,2585.0,3.86833]
[1727026341884,2.691908,2585.4,2585.1,3.86828]
[1727026343184,2.3239,2585.7,2585.3,3.86802]
[1727026343573,2.3239,2585.7,2585.4,3.86776]
[1727026343976,2.3239,2585.7,2585.3,3.86794]
[1727026344186,2.3239,2585.7,2585.5,3.86762]
[1727026344562,2.3239,2585.7,2585.5,7.73526]
[1727026345165,7.45,2585.9,2585.5,3.86762]
[1727026345366,0.745,2585.8,2585.5,7.73526]
[1727026345799,2.3239,2585.9,2585.5,7.73526]
[1727026346102,2.3239,2585.9,2585.5,3.86762]
[1727026346616,2.3239,2586.3,2585.9,3.86711]
[1727026346903,6.19043,2586.3,2585.8,3.86724]
[1727026347110,0.97739,2586.2,2585.8,3.86724]
[1727026348101,0.97739,2586.2,2585.6,7.73496]
[1727026348305,2.3239,2586.1,2585.7,3.86731]
[1727026348512,0.330129,2586.0,2585.7,3.86731]
[1727026348814,0.330129,2586.0,2585.6,7.73488]
[1727026348967,0.330129,2586.0,2585.7,3.86738]
[1727026349408,0.330129,2586.0,2585.8,3.86725]
[1727026350215,0.330129,2586.0,2585.8,3.86718]
[1727026350393,2.3239,2586.1,2585.8,3.86718]
[1727026351101,2.3239,2586.1,2585.9,3.8671]
[1727026351677,0.97739,2586.2,2585.9,3.8671]
[1727026352306,0.97739,2586.2,2585.9,3.86705]
[1727026352481,2.3239,2586.3,2585.9,3.86705]
[1727026352675,2.3239,2586.3,2586.0,3.86697]
[1727026353582,6.41627755,2586.3,2585.6,3.86743]
[1727026353784,6.19065,2586.2,2585.7,3.86742]
[1727026354884,2.3239,2586.2,2585.7,3.86742]
[1727026355118,0.87401776,2586.1,2585.7,3.86742]
[1727026356002,6.1909,2586.0,2585.5,3.86767]
[1727026359435,2.3239,2586.0,2585.5,3.86767]
[1727026360047,6.19091,2586.0,2585.5,3.86767]
[1727026360820,2.3239,2586.0,2585.6,3.86755]
[1727026365643,2.3239,2586.0,2585.6,7.73503]
[1727026365842,2.3239,2586.0,2585.6,3.86748]
[1727026367648,2.2902,2585.5,2585.0,6.32756]
[1727026367852,2.2902,2585.5,2585.0,3.86846]
[1727026368175,2.2902,2585.8,2585.5,3.8676]
[1727026370245,2.2902,2585.8,2585.5,7.73525]
[1727026370448,2.2902,2585.8,2585.5,3.8676]
[1727026371156,2.2902,2585.8,2585.5,7.73524]
[1727026371484,3.650918,2585.8,2585.3,6.32701]
[1727026371649,3.650918,2585.8,2585.3,3.86791]
[1727026372385,3.650918,2585.8,2585.5,3.86771]
[1727026373403,3.650918,2585.8,2585.5,3.86762]
[1727026377395,3.650918,2585.8,2585.7,3.86742]
[1727026377589,2.2902,2585.8,2585.5,3.86769]
[1727026379503,2.2902,2585.8,2585.3,3.8679]
[1727026379839,7.32058721,2585.6,2585.1,3.86822]
[1727026380489,2.2752,2585.6,2585.1,3.86822]
[1727026380693,2.2752,2585.6,2585.3,3.86793]
[1727026381108,2.2752,2585.6,2585.4,3.86777]
[1727026381695,2.2752,2585.8,2585.4,3.86777]
[1727026382493,2.2752,2585.8,2585.6,3.86756]
[1727026382990,2.54146018,2585.8,2585.6,3.86756]
[1727026383194,2.54146018,2585.8,2585.5,3.8677]
[1727026383596,2.54146018,2585.8,2585.4,7.73552]
[1727026383797,2.54146018,2585.8,2585.4,3.86773]
[1727026384007,2.54146018,2585.8,2585.2,3.86806]
[1727026384008,1.17781721,2585.6,2585.2,3.86806]
[1727026384212,2.46,2585.5,2585.2,3.86806]
[1727026384593,5.04569721,2585.4,2584.9,3.86861]
[1727026384799,2.46,2585.3,2584.8,3.86864]
[1727026385213,2.46,2585.3,2585.0,3.86837]
[1727026385414,2.46,2585.3,2584.7,2.4727]
[1727026385619,2.46,2585.6,2585.4,3.86778]
[1727026386001,10.17626018,2585.8,2585.5,3.86772]
[1727026386242,2.72626018,2585.8,2585.5,3.86772]
[1727026387144,3.90407739,2585.8,2585.5,3.86772]
[1727026387314,0.39040774,2585.7,2585.5,3.86772]
[1727026387636,0.39040774,2585.7,2585.3,3.86788]
[1727026387813,2.46,2585.5,2585.2,3.86816]
[1727026388141,2.46,2585.5,2584.9,3.86848]
[1727026388319,3.6363235,2585.5,2584.9,3.86848]
[1727026388696,3.6363235,2585.5,2585.0,3.86847]
[1727026388697,1.17781721,2585.4,2585.0,3.86847]
[1727026388897,1.17781721,2585.2,2584.8,3.86867]
[1727026389333,2.46,2585.1,2584.5,3.86921]
[1727026389510,2.46,2585.1,2584.7,3.86888]
[1727026389817,2.46,2585.1,2584.7,3.86882]
[1727026390398,2.46,2585.1,2584.9,3.8686]
[1727026392223,2.46,2585.3,2585.0,3.86847]
[1727026395812,2.46,2585.6,2585.2,3.86806]
[1727026396060,2.46,2585.8,2585.4,7.73558]
[1727026396356,3.205,2585.8,2585.4,3.86779]
[1727026396649,3.205,2585.8,2585.5,3.86763]
[1727026397122,3.205,2585.8,2585.4,3.86779]
[1727026397333,2.46,2585.8,2585.4,7.73558]
[1727026397533,2.46,2585.8,2585.4,3.86779]
[1727026398239,2.46,2585.8,2585.4,7.73554]
[1727026398616,2.46,2585.8,2585.5,3.86772]
[1727026402319,2.46,2585.8,2585.4,7.73553]
[1727026402662,0.88804709,2585.7,2585.4,7.73553]
[1727026402866,4.88905086,2585.5,2584.8,3.18822152]
[1727026403015,12.62470086,2585.5,2585.0,3.8684]
[1727026403365,12.62470086,2585.5,2584.9,3.8686]
[1727026403366,6.31505,2585.4,2584.9,3.8686]
[1727026404757,2.4471,2585.4,2585.0,3.86845]
[1727026405129,2.4471,2585.4,2585.1,3.86829]
[1727026405462,3.078592,2585.4,2585.1,3.86829]
[1727026406357,2.4471,2585.6,2585.2,3.86809]
[1727026406861,2.4471,2585.6,2585.3,3.868]
[1727026408569,2.4471,2585.6,2585.2,3.86809]
[1727026409265,2.4471,2585.5,2584.8,3.86868]
[1727026409427,2.4471,2585.2,2584.8,7.73744]
[1727026410041,2.4471,2585.2,2584.8,3.8687]
[1727026410239,2.4471,2585.2,2584.8,7.73738]
[1727026410590,2.4471,2585.2,2584.8,3.86868]
[1727026410862,2.4471,2585.2,2584.8,7.73737]
[1727026411365,2.4471,2585.2,2584.8,3.86868]
[1727026411524,3.4720429,2585.2,2584.8,3.86868]
[1727026412446,3.4720429,2585.2,2584.8,7.73738]
[1727026412737,3.4720429,2585.2,2584.8,7.73737]
[1727026412955,3.4720429,2585.2,2584.8,3.86868]
[1727026415169,3.86832,2585.1,2584.6,6.22515]
[1727026415392,0.73403629,2585.0,2584.6,10.09413]
[1727026415685,2.4471,2584.9,2584.4,3.86927]
[1727026415883,3.86877,2584.8,2584.3,3.86943]
[1727026416384,2.4471,2584.9,2584.4,3.86936]
[1727026416969,2.4471,2584.9,2584.2,3.86955]
[1727026416970,3.86887,2584.8,2584.3,3.86951]
[1727026417146,0.631597,2584.7,2584.3,3.86951]
[1727026417341,2.4471,2584.6,2584.2,3.86955]
[1727026417590,6.31618,2584.6,2584.0,7.7397]
[1727026417898,6.42272086,2584.4,2583.9,3.87011]
[1727026418199,2.3913,2584.3,2583.8,3.87015]
[1727026418492,3.65964809,2584.3,2583.8,7.74034]
[1727026419043,3.65964809,2584.3,2583.9,3.8701]
[1727026419640,3.65964809,2584.3,2584.0,3.86987]
[1727026419844,2.3913,2584.3,2584.0,3.86987]
[1727026420450,2.3913,2584.3,2584.1,3.8698]
[1727026421066,2.3913,2584.3,2583.9,3.87006]
[1727026421684,2.3913,2584.3,2584.0,3.86995]
[1727026421894,3.017356,2584.3,2584.0,3.86995]
[1727026422762,3.017356,2584.3,2584.1,3.8698]
[1727026422988,2.3913,2584.3,2584.0,7.73984]
[1727026423151,2.3913,2584.3,2584.0,3.86989]
[1727026423354,2.4657,2584.5,2584.1,3.8698]
[1727026423590,2.4657,2584.5,2584.3,3.8695]
[1727026423903,3.9073327,2584.5,2584.3,3.8695]
[1727026425187,3.9073327,2584.5,2584.1,3.8698]
[1727026425785,3.9073327,2584.5,2584.1,7.7395]
[1727026425989,10.547297,2584.7,2584.3,3.86937]
[1727026426357,9.9157,2584.7,2584.5,3.86921]
[1727026426603,2.4657,2584.7,2584.5,3.86921]
[1727026426781,2.4657,2584.7,2584.6,3.86907]
[1727026426962,7.44646376,2585.2,2584.5,3.86921]
[1727026426963,6.33406,2585.1,2584.5,3.86921]
[1727026427163,1.37805238,2585.0,2584.6,3.86905]
[1727026428310,5.24659238,2585.0,2584.5,3.86912]
[1727026428455,7.79994324,2585.0,2584.6,2.4067]
[1727026428659,1.37805238,2585.0,2584.6,3.86905]
[1727026428857,1.37805238,2585.0,2584.7,7.73765]
[1727026429257,3.4906429,2585.2,2584.7,7.73765]
[1727026429682,7.3588729,2585.2,2584.7,3.86882]
[1727026431470,6.04399376,2585.2,2584.5,3.86919]
[1727026431677,3.86834,2585.1,2584.6,3.86906]
[1727026431985,0.99123338,2585.0,2584.6,3.86906]
[1727026432492,0.99123338,2585.0,2584.5,3.86919]
[1727026432668,3.57829376,2585.2,2584.7,7.73769]
[1727026432669,2.4657,2585.1,2584.7,7.73769]
[1727026433186,2.4657,2585.1,2584.8,3.86875]
[1727026433506,2.4657,2585.1,2584.9,3.86853]
[1727026435413,2.4657,2585.1,2584.7,7.73765]
[1727026435625,2.4657,2585.1,2584.8,3.86873]
[1727026435907,2.4657,2585.1,2584.6,3.86906]
[1727026435908,9.52085586,2585.1,2584.6,3.86906]
[1727026436109,8.88748086,2585.1,2584.6,3.86906]
[1727026437289,12.75592086,2585.1,2584.6,3.86906]
[1727026437487,3.86848,2585.0,2584.4,6.27592]
[1727026437734,3.86848,2585.0,2584.5,3.86914]
[1727026437893,1.27559609,2584.9,2584.5,3.86914]
[1727026438431,1.27559609,2584.9,2584.6,3.86905]
[1727026439505,5.14424609,2584.9,2584.4,3.86922]
[1727026439828,2.3621,2584.8,2584.4,3.86922]
[1727026440032,0.75063461,2584.7,2584.4,3.86922]
[1727026440498,0.75063461,2584.7,2584.4,7.73852]
[1727026440692,2.3621,2584.8,2584.4,7.73852]
[1727026440934,2.3621,2584.8,2584.5,3.8692]
[1727026441694,2.3621,2584.8,2584.6,3.86903]
[1727026442497,6.23037,2585.2,2584.7,3.8689]
[1727026442897,6.23037,2585.2,2584.7,7.73775]
[1727026443245,0.623037,2585.1,2584.7,7.73775]
[1727026443406,0.623037,2585.1,2584.7,3.86885]
[1727026443753,0.623037,2585.1,2584.8,3.86873]
[1727026443899,0.623037,2585.1,2584.9,3.86847]
[1727026444234,6.42134086,2585.4,2584.9,3.86847]
[1727026444235,2.3552,2585.4,2584.9,3.86847]
[1727026444463,2.3552,2585.4,2585.1,3.86831]
[1727026444612,2.977478,2585.4,2585.1,3.86831]
[1727026444949,2.3552,2585.6,2585.3,3.868]
[1727026445950,2.3552,2585.8,2585.4,3.86782]
[1727026447005,2.3552,2585.8,2585.2,3.86808]
[1727026447006,3.86759,2585.6,2585.2,3.86808]
[1727026447305,3.10335086,2585.7,2585.2,3.86808]